bitfinex/quotes_ETHUSD_20250210
["timestamp","ask_amount","ask_price","bid_price","bid_amount"]
[1739190481483,0.8124,2654.1,2653.5,2.86783666]
[1739190481670,3.76797,2654.0,2653.5,6.63634666]
[1739190482095,0.8124,2654.1,2653.6,3.76845]
[1739190482271,4.58024,2654.1,2653.6,3.76845]
[1739190482597,3.76799,2654.0,2653.5,2.86783666]
[1739190482891,3.7682,2653.8,2653.3,3.76888]
[1739190483259,0.8124,2653.7,2653.1,2.86783666]
[1739190483488,0.8124,2653.7,2652.5,0.0813]
[1739190483489,0.8124,2653.7,2653.3,3.76878]
[1739190483692,0.8124,2653.7,2653.5,3.76856]
[1739190483891,0.8124,2654.1,2653.5,3.76856]
[1739190484493,0.8124,2654.5,2654.1,3.76766]
[1739190484692,0.8124,2654.5,2653.5,2.86783666]
[1739190484693,4.57963,2654.5,2653.9,3.76792]
[1739190485161,8.34693,2654.5,2653.9,3.76792]
[1739190485554,0.8124,2654.5,2653.5,2.86783666]
[1739190485791,3.76741,2654.4,2653.8,3.76809]
[1739190485959,0.8124,2654.5,2653.5,2.86783666]
[1739190486160,0.8124,2654.5,2654.2,3.7676]
[1739190486395,0.8124,2654.5,2654.2,7.5352]
[1739190486559,0.8124,2654.5,2654.2,3.7676]
[1739190486760,3.0,2654.7,2654.2,3.76753]
[1739190487065,3.0,2654.7,2654.3,3.76745]
[1739190487254,4.57924,2654.8,2654.3,3.76745]
[1739190487661,0.8124,2654.8,2654.5,3.76718]
[1739190488293,0.8124,2654.8,2654.5,7.53426]
[1739190488501,0.8124,2654.8,2654.6,3.76694]
[1739190488670,0.8124,2654.8,2654.3,6.63518666]
[1739190489102,0.8124,2654.8,2654.4,3.7672]
[1739190489479,0.8124,2654.8,2654.6,3.76704]
[1739190489925,0.7666,2655.2,2654.3,2.86783666]
[1739190490098,0.7666,2655.2,2654.9,3.76661]
[1739190490433,4.53137,2656.2,2655.7,3.76547]
[1739190490572,4.53137,2656.2,2655.5,3.76567]
[1739190490878,3.76506,2656.0,2655.5,3.76567]
[1739190491277,3.76506,2656.0,2655.3,3.76592]
[1739190491684,3.76506,2656.0,2655.3,6.44183897]
[1739190492407,0.7666,2655.4,2655.0,2.67591897]
[1739190492605,3.76623,2655.2,2654.7,2.67591897]
[1739190493896,3.76647,2655.0,2654.7,2.67591897]
[1739190494227,3.76623,2655.2,2654.7,2.67591897]
[1739190494523,0.7666,2655.4,2654.7,2.67591897]
[1739190494684,3.76613,2655.3,2654.8,3.76664]
[1739190495220,3.76619,2655.2,2654.7,6.44276897]
[1739190495575,3.76619,2655.2,2654.7,3.76685]
[1739190495773,0.7666,2655.4,2654.9,2.86819719]
[1739190496010,0.7666,2655.9,2655.1,3.76627]
[1739190496172,3.76563,2655.6,2655.1,3.76627]
[1739190496573,3.76593,2655.4,2654.8,3.84796]
[1739190496821,3.76593,2655.4,2654.7,3.76682]
[1739190497012,3.76638,2655.1,2654.5,6.63529719]
[1739190497185,0.7666,2655.3,2654.3,9.13806069]
[1739190497186,3.76669,2654.9,2654.3,9.13806069]
[1739190497672,3.76669,2654.9,2654.3,5.37067069]
[1739190497879,3.76669,2654.9,2654.4,3.76732]
[1739190498231,3.76641,2655.1,2654.5,3.7671]
[1739190498893,4.53272,2655.3,2654.6,3.76693]
[1739190499097,3.76619,2655.2,2654.6,7.53388]
[1739190499401,3.76619,2655.2,2654.6,3.76693]
[1739190499583,3.76619,2655.2,2654.6,7.5339]
[1739190500209,3.76619,2655.2,2654.6,3.76693]
[1739190500408,4.53272,2655.3,2654.5,2.86819719]
[1739190500576,0.7666,2655.3,2654.9,3.76652]
[1739190500780,0.7666,2655.3,2654.7,3.76683]
[1739190501017,4.53275,2655.3,2654.7,3.76683]
[1739190501215,4.53275,2655.3,2654.8,3.76675]
[1739190501391,0.7666,2655.3,2654.9,3.76658]
[1739190501591,3.7662,2655.2,2654.7,7.53365]
[1739190502915,0.7666,2655.3,2654.8,3.76676]
[1739190503283,3.76628,2655.2,2654.7,3.7668]
[1739190503681,0.7666,2655.3,2655.0,3.76647]
[1739190503914,3.76558,2655.7,2654.5,6.63534719]
[1739190503915,0.7666,2655.6,2655.1,3.76621]
[1739190504095,0.7666,2655.6,2655.3,3.76597]
[1739190504409,0.7666,2655.6,2655.3,3.76602]
[1739190504623,3.0,2655.8,2655.3,3.76602]
[1739190504806,4.53188,2655.9,2655.3,3.76602]
[1739190505004,4.53188,2655.9,2655.4,3.76581]
[1739190505206,8.29719,2655.9,2655.3,7.5319]
[1739190505404,4.53188,2655.9,2655.3,7.5319]
[1739190505591,8.29717,2655.9,2655.3,7.5319]
[1739190505795,8.29717,2655.9,2655.3,3.76595]
[1739190506015,3.76535,2655.8,2655.1,3.76623]
[1739190506219,3.76556,2655.7,2655.2,3.76615]
[1739190506519,3.76535,2655.8,2655.1,3.76623]
[1739190506837,4.53306,2655.1,2654.5,2.94949719]
[1739190506985,0.7666,2655.1,2654.7,3.76681]
[1739190507487,0.7666,2655.1,2654.8,3.76674]
[1739190507686,0.7666,2655.7,2654.9,2.90586279]
[1739190507888,0.7666,2655.7,2655.5,3.76574]
[1739190508088,3.0,2655.9,2655.5,3.76574]
[1739190509086,3.0,2655.9,2655.5,3.76568]
[1739190509719,3.0,2655.9,2655.6,3.76562]
[1739190510729,0.7666,2656.0,2655.5,3.76568]
[1739190510902,0.7666,2656.0,2655.1,3.84758]
[1739190510903,3.76541,2655.8,2655.1,3.84759]
[1739190511106,7.53087,2655.8,2655.2,3.76619]
[1739190511301,3.76549,2655.7,2655.2,3.76619]
[1739190511506,0.7666,2655.6,2655.1,3.76624]
[1739190511714,0.7666,2655.6,2655.3,3.766]
[1739190511931,0.7666,2655.6,2655.4,3.7659]
[1739190512235,3.7666,2655.9,2655.4,3.7659]
[1739190512437,3.7666,2655.9,2655.3,3.766]
[1739190512438,0.7666,2655.9,2655.6,3.76555]
[1739190512609,4.53145,2656.2,2655.7,3.76543]
[1739190513524,4.53145,2656.2,2655.6,3.76555]
[1739190513731,4.53145,2656.2,2655.4,3.76582]
[1739190513931,3.76491,2656.1,2655.5,3.76576]
[1739190515109,3.76508,2656.0,2655.5,3.76576]
[1739190515419,3.76498,2656.1,2655.4,3.76582]
[1739190515620,3.76498,2656.1,2655.5,3.76567]
[1739190516395,4.53145,2656.2,2655.5,3.76567]
[1739190516930,3.76498,2656.1,2655.5,3.76567]
[1739190517428,3.76498,2656.1,2655.6,3.76555]
[1739190517732,3.76498,2656.1,2655.6,6.4409719]
[1739190518299,3.76498,2656.1,2655.6,10.2065219]
[1739190518501,0.7666,2656.2,2655.6,2.6754219]
[1739190518731,0.7666,2656.2,2655.7,3.76539]
[1739190518937,3.76449,2656.4,2655.9,6.4405419]
[1739190519236,0.7666,2656.5,2655.9,6.4405419]
[1739190519237,0.7666,2656.5,2656.2,2.6754219]
[1739190519939,0.7666,2656.5,2655.9,2.6754219]
[1739190520126,3.76454,2656.4,2655.9,10.2057319]
[1739190520514,4.53101,2656.5,2656.0,3.765]
[1739190521458,3.76455,2656.4,2655.9,6.4405419]
[1739190521920,4.53101,2656.5,2656.0,3.76505]
[1739190522330,0.7666,2656.5,2656.2,3.76471]
[1739190522539,3.76413,2656.7,2656.2,6.4401319]
[1739190522707,0.8281,2656.3,2655.9,2.6754219]
[1739190522912,0.8281,2656.3,2655.9,6.4405319]
[1739190523120,3.76458,2656.4,2655.9,6.4405319]
[1739190523316,0.8281,2656.6,2655.9,2.6754219]
[1739190523518,3.76495,2656.1,2655.6,6.4409819]
[1739190523723,3.76506,2656.0,2655.6,6.4409819]
[1739190524124,3.76506,2656.0,2655.6,2.6754219]
[1739190524542,3.76506,2656.0,2655.6,6.4410219]
[1739190524842,0.8281,2656.1,2655.7,3.76546]
[1739190525143,4.59307,2656.1,2655.6,2.6754219]
[1739190525319,3.76506,2656.0,2655.6,2.6754219]
[1739190525520,3.76548,2655.8,2655.3,2.6754219]
[1739190525847,3.76555,2655.7,2655.3,2.6754219]
[1739190526144,3.76533,2655.9,2655.3,6.4414419]
[1739190526346,3.76516,2656.0,2655.6,6.4410319]
[1739190526526,3.76548,2655.7,2655.3,2.6754219]
[1739190526726,3.76534,2655.9,2655.3,6.4414619]
[1739190527045,3.76521,2655.9,2655.3,6.4414619]
[1739190527240,7.53054,2655.9,2655.3,6.4414619]
[1739190527444,3.76521,2655.9,2655.3,6.4414619]
[1739190527623,3.76521,2655.9,2655.4,3.76589]
[1739190527944,4.59312,2656.1,2655.5,3.76565]
[1739190528343,4.59312,2656.1,2655.6,3.76562]
[1739190529112,3.76514,2656.0,2655.5,3.76576]
[1739190529445,0.8281,2656.1,2655.3,2.6754219]
[1739190529684,3.76558,2655.7,2655.3,2.6754219]
[1739190529946,0.8281,2655.6,2655.3,2.6754219]
[1739190530322,0.8281,2655.6,2655.2,3.76608]
[1739190530722,0.8281,2655.6,2655.3,3.76601]
[1739190530940,0.8281,2655.6,2655.2,7.53217]
[1739190531142,0.8281,2655.6,2655.1,3.76624]
[1739190531143,4.5938,2655.6,2655.1,3.76624]
[1739190531347,3.76581,2655.5,2655.1,3.76624]
[1739190531843,0.8281,2655.6,2655.1,3.76624]
[1739190532145,0.8281,2655.6,2655.3,3.76602]
[1739190532845,3.0,2655.9,2655.3,3.76602]
[1739190532846,7.59331,2655.9,2655.3,6.4414419]
[1739190533147,0.8281,2655.9,2655.4,3.76591]
[1739190533343,0.8281,2655.9,2655.5,3.76567]
[1739190533966,4.5933,2655.9,2655.5,3.76567]
[1739190534320,4.5933,2655.9,2655.3,2.6754219]
[1739190534321,3.76547,2655.8,2655.3,6.4413819]
[1739190534522,3.76571,2655.6,2655.0,6.4417719]
[1739190534722,3.76571,2655.6,2655.1,3.76623]
[1739190535055,3.76553,2655.7,2655.2,3.76619]
[1739190535536,3.76535,2655.8,2655.0,2.6754219]
[1739190535741,3.76535,2655.8,2655.3,3.76596]
[1739190536125,7.59331,2655.9,2655.4,3.76579]
[1739190536753,3.76538,2655.8,2655.4,3.76579]
[1739190536970,3.76538,2655.8,2655.1,3.76623]
[1739190536971,3.76538,2655.8,2655.3,3.76602]
[1739190537167,3.76538,2655.8,2655.3,7.532]
[1739190537373,3.76538,2655.8,2655.3,3.76598]
[1739190537770,3.76538,2655.8,2655.3,3.76597]
[1739190538542,0.8281,2655.9,2655.4,3.7659]
[1739190538744,3.8281,2655.9,2655.5,3.76576]
[1739190540669,0.8281,2655.9,2655.3,2.7567219]
[1739190540986,3.76543,2655.8,2655.3,6.5227019]
[1739190541168,0.7898,2655.6,2654.5,0.0813]
[1739190541333,3.76718,2654.5,2654.4,2.6754219]
[1739190541664,3.76718,2654.5,2654.1,2.6754219]
[1739190541865,3.76718,2654.5,2653.9,3.76794]
[1739190541866,0.7898,2654.3,2653.8,2.6754219]
[1739190542371,0.7898,2654.6,2654.1,2.6754219]
[1739190542661,4.55693,2654.6,2654.1,2.6754219]
[1739190542965,0.7898,2654.6,2654.1,2.6754219]
[1739190543534,0.7898,2654.6,2654.2,3.7675]
[1739190543759,0.7898,2655.0,2654.6,3.76696]
[1739190544263,0.7898,2655.0,2654.6,3.76695]
[1739190544567,0.7898,2655.0,2654.7,3.7668]
[1739190545003,4.55628,2655.0,2654.5,2.6754219]
[1739190545291,0.7898,2655.0,2654.5,6.4426019]
[1739190545694,3.7898,2655.0,2654.5,6.4425919]
[1739190546277,0.7898,2655.4,2654.8,2.6754219]
[1739190546479,0.7898,2655.4,2655.1,3.76628]
[1739190546971,0.7898,2655.4,2655.0,7.53282]
[1739190547173,0.7898,2655.4,2655.1,3.7663]
[1739190547370,0.7898,2655.4,2655.2,3.76618]
[1739190547569,0.7898,2655.8,2655.3,3.76605]
[1739190547774,4.55522,2655.8,2655.3,3.76605]
[1739190548397,0.7898,2655.8,2655.5,3.76575]
[1739190548701,3.7936,2656.0,2655.5,7.53142]
[1739190548992,3.7936,2656.0,2655.5,3.76567]
[1739190548993,0.7936,2656.0,2655.5,3.76567]
[1739190549197,0.7936,2656.0,2655.7,3.76543]
[1739190549700,3.7936,2656.0,2655.5,7.53136]
[1739190549899,3.7936,2656.0,2655.6,3.76559]
[1739190550193,0.7936,2656.0,2655.8,3.76532]
[1739190550964,0.7936,2656.3,2655.9,3.7652]
[1739190551290,0.7936,2656.3,2656.0,3.76504]
[1739190551665,0.7936,2656.3,2655.8,3.76534]
[1739190551864,0.7936,2656.3,2655.9,3.76515]
[1739190552061,3.76478,2656.2,2655.7,6.4408919]
[1739190552504,3.765,2656.1,2655.4,6.4412419]
[1739190552679,4.55827,2656.3,2655.7,3.76546]
[1739190552878,3.76484,2656.2,2655.6,3.76562]
[1739190553394,4.55827,2656.3,2655.6,3.76555]
[1739190553599,4.55827,2656.3,2655.7,3.76547]
[1739190553902,0.7936,2656.3,2655.9,3.76517]
[1739190554066,0.7936,2656.3,2655.7,6.4407719]
[1739190554399,0.7936,2656.3,2656.0,3.76502]
[1739190555372,0.7936,2656.3,2656.2,3.76477]
[1739190555679,3.7578,2656.5,2656.0,3.76494]
[1739190555882,3.76452,2656.4,2655.8,7.53048]
[1739190556498,3.76471,2656.3,2655.8,3.76523]
[1739190556998,3.76471,2656.3,2655.8,7.53048]
[1739190557206,3.0,2656.4,2655.9,3.76511]
[1739190557411,0.7578,2656.5,2656.1,3.76489]
[1739190557899,3.7578,2656.5,2656.1,3.76489]
[1739190558270,0.7578,2656.5,2656.2,3.76472]
[1739190558703,0.7578,2656.5,2656.1,3.76489]
[1739190559291,0.7578,2656.5,2656.0,2.6754219]
[1739190559929,3.7645,2656.4,2656.0,2.6754219]
[1739190560326,3.7645,2656.4,2655.8,0.0813]
[1739190560830,3.7645,2656.4,2655.8,3.84661]
[1739190561301,3.7645,2656.4,2655.8,0.0813]
[1739190561698,3.7645,2656.4,2656.0,2.17331343]
[1739190562423,4.52222,2656.5,2656.0,2.17331343]
[1739190563125,3.76475,2656.3,2656.0,2.17331343]
[1739190563692,3.76449,2656.4,2656.0,2.17331343]
[1739190564422,0.7578,2656.5,2656.0,2.17331343]
[1739190564920,0.7578,2656.5,2656.0,5.93836343]
[1739190565122,0.7578,2656.5,2656.0,2.17331343]
[1739190565326,4.52194,2656.7,2656.0,6.01959343]
[1739190565723,3.76435,2656.5,2656.0,2.25461343]
[1739190565895,3.76434,2656.6,2656.0,2.25461343]
[1739190566517,3.76434,2656.6,2656.0,6.01966343]
[1739190567016,3.76434,2656.6,2656.0,2.25461343]
[1739190568028,3.7578,2656.7,2656.1,3.76486]
[1739190568225,0.7578,2656.7,2656.3,2.17331343]
[1739190568941,3.7578,2656.7,2656.3,2.17331343]
[1739190569116,7.5219,2656.7,2656.3,2.17331343]
[1739190569439,7.5219,2656.7,2656.0,2.17331343]
[1739190569440,3.76458,2656.4,2656.0,2.17331343]
[1739190569609,3.76436,2656.5,2656.0,2.17331343]
[1739190569807,7.52879,2656.5,2656.0,2.17331343]
[1739190570034,3.76436,2656.5,2656.0,2.17331343]
[1739190571121,7.5288,2656.5,2656.0,2.17331343]
[1739190571327,3.76452,2656.4,2656.0,2.17331343]
[1739190572332,3.76436,2656.5,2656.0,2.17331343]
[1739190572534,7.52194,2656.7,2656.0,5.93830343]
[1739190572535,4.52193,2656.7,2656.0,5.93830343]
[1739190572844,4.52193,2656.7,2656.0,2.17331343]
[1739190572845,3.76422,2656.6,2656.0,2.17331343]
[1739190573344,3.76449,2656.4,2656.0,2.17331343]
[1739190573648,3.76474,2656.3,2656.0,2.17331343]
[1739190574034,3.76449,2656.4,2656.0,2.17331343]
[1739190574556,3.7643,2656.6,2656.0,2.17331343]
[1739190575348,3.76436,2656.5,2656.0,2.17331343]
[1739190577022,3.7643,2656.6,2656.0,2.17331343]
[1739190577346,3.7643,2656.6,2656.0,5.93836343]
[1739190577532,3.76429,2656.6,2656.0,2.17331343]
[1739190577729,3.76437,2656.5,2656.0,2.17331343]
[1739190577933,7.5286,2656.6,2656.0,2.17331343]
[1739190578438,3.76429,2656.6,2656.0,2.17331343]
[1739190578630,3.76429,2656.6,2656.0,5.93835343]
[1739190578834,3.76429,2656.6,2656.0,5.93829343]
[1739190579021,7.52863,2656.6,2656.0,5.93829343]
[1739190579422,3.76436,2656.5,2656.0,2.17331343]
[1739190579654,3.76442,2656.5,2656.0,2.17331343]
[1739190580031,3.76452,2656.4,2656.0,2.17331343]
[1739190580747,4.52198,2656.7,2656.0,2.17331343]
[1739190580924,3.7642,2656.6,2656.0,2.17331343]
[1739190581446,3.76454,2656.4,2656.0,2.17331343]
[1739190582125,0.7578,2656.7,2656.1,3.76486]
[1739190582332,0.7578,2656.7,2656.0,2.17331343]
[1739190582533,0.7534,2657.0,2656.3,2.17331343]
[1739190582834,7.52894,2656.5,2656.1,0.0813]
[1739190583042,3.76447,2656.5,2656.1,0.0813]
[1739190583569,3.76453,2656.4,2656.1,0.0813]
[1739190583750,3.76453,2656.4,2656.0,2.17331343]
[1739190583751,3.76471,2656.3,2656.0,2.17331343]
[1739190584748,4.51793,2656.4,2656.0,2.17331343]
[1739190584960,0.7534,2656.4,2656.0,2.17331343]
[1739190585162,3.76486,2656.2,2656.0,2.17331343]
[1739190585353,3.76486,2656.2,2655.8,1.60329069]
[1739190585883,0.7534,2656.4,2655.7,2.17331343]
[1739190586099,0.55,2656.2,2655.4,2.17331343]
[1739190586260,0.7534,2655.8,2655.4,2.17331343]
[1739190586466,4.51888,2655.8,2655.4,2.17331343]
[1739190587066,3.76506,2656.0,2655.4,2.17331343]
[1739190587694,7.5302,2656.0,2655.4,2.17331343]
[1739190588169,3.76506,2656.0,2655.4,2.17331343]
[1739190588366,3.7534,2656.1,2655.5,3.76571]
[1739190588565,4.51795,2656.4,2655.7,2.17331343]
[1739190588863,3.76472,2656.3,2655.7,2.17331343]
[1739190589073,3.0,2656.2,2655.7,2.17331343]
[1739190589373,6.7648,2656.2,2655.7,2.17331343]
[1739190589908,3.7648,2656.2,2655.7,2.17331343]
[1739190591632,6.76465,2656.3,2655.7,5.93876343]
[1739190592438,3.0,2656.3,2655.7,2.17331343]
[1739190592577,6.76475,2656.3,2655.7,5.93877343]
[1739190593578,3.76486,2656.2,2655.7,2.17331343]
[1739190595115,3.76504,2656.1,2655.7,2.17331343]
[1739190595820,3.76502,2656.1,2655.7,2.17331343]
[1739190596920,3.76517,2656.0,2655.7,2.17331343]
[1739190597938,3.76501,2656.1,2655.7,2.17331343]
[1739190598644,7.53002,2656.1,2655.7,2.17331343]
[1739190599149,3.76509,2656.0,2655.7,2.17331343]
[1739190599515,3.76501,2656.1,2655.7,2.17331343]
[1739190600043,3.76531,2655.9,2655.7,2.17331343]
[1739190600251,3.76546,2655.8,2655.4,2.17331343]
[1739190600415,3.76536,2655.8,2655.4,2.17331343]
[1739190600611,3.76536,2655.8,2654.8,4.89334614]
[1739190600612,0.55,2655.9,2655.1,2.17331343]
[1739190600866,0.55,2655.5,2654.5,0.0813]
[1739190601187,3.7669,2654.7,2654.3,2.17331343]
[1739190601518,7.54101,2655.1,2654.3,2.17331343]
[1739190601716,3.0,2654.9,2654.6,2.17331343]
[1739190602138,3.76655,2655.0,2654.6,2.17331343]
[1739190602636,3.76592,2655.4,2654.9,2.17331343]
[1739190602837,7.53194,2655.4,2654.9,2.17331343]
[1739190603152,3.76523,2655.9,2654.7,0.0813]
[1739190603153,4.54001,2655.8,2655.2,2.17331343]
[1739190603463,3.76562,2655.6,2655.2,2.25461343]
[1739190603661,3.76582,2655.5,2655.2,2.17331343]
[1739190604023,3.76562,2655.6,2655.2,2.17331343]
[1739190604834,0.7746,2655.8,2655.2,2.17331343]
[1739190605024,3.76573,2655.6,2655.2,2.17331343]
[1739190605224,3.76582,2655.5,2655.2,2.17331343]
[1739190605422,3.76573,2655.6,2655.2,2.17331343]
[1739190605854,4.54,2655.8,2655.2,2.17331343]
[1739190606158,4.53975,2656.0,2655.5,2.17331343]
[1739190606671,3.76562,2655.6,2655.2,2.17331343]
[1739190607123,3.76595,2655.4,2655.2,2.17331343]
[1739190607324,3.76613,2655.3,2654.9,2.17331343]
[1739190607675,3.76585,2655.5,2655.2,2.17331343]
[1739190608028,0.55,2655.6,2654.9,2.17331343]
[1739190608251,3.76636,2655.1,2654.9,2.17331343]
[1739190608416,3.76633,2655.1,2654.7,1.60329069]
[1739190608830,7.53275,2655.1,2654.7,1.60329069]
[1739190609362,3.76633,2655.1,2654.7,1.60329069]
[1739190609923,7.53274,2655.1,2654.7,1.60329069]
[1739190610555,3.76648,2655.0,2654.7,1.60329069]
[1739190610870,3.76613,2655.3,2654.7,1.60329069]
[1739190611051,3.76635,2655.1,2654.7,1.60329069]
[1739190611247,3.76647,2655.0,2654.7,1.60329069]
[1739190612686,3.76635,2655.1,2654.7,1.60329069]
[1739190612832,7.53281,2655.1,2654.6,2.17331343]
[1739190613832,3.76635,2655.1,2654.6,2.17331343]
[1739190614168,7.53281,2655.1,2654.6,2.17331343]
[1739190614343,3.76635,2655.1,2654.6,2.17331343]
[1739190614544,3.76635,2655.1,2654.6,5.94034343]
[1739190614962,3.76563,2655.6,2655.0,3.76637]
[1739190615162,3.76563,2655.6,2654.9,2.17331343]
[1739190615163,3.76585,2655.5,2654.9,2.17331343]
[1739190615371,3.7664,2655.1,2654.7,0.0813]
[1739190615537,3.7773,2655.8,2654.7,0.0813]
[1739190615538,3.76651,2655.0,2654.7,0.0813]
[1739190615870,3.76713,2654.6,2654.4,0.0813]
[1739190616166,3.76712,2654.6,2654.3,2.17331343]
[1739190616369,3.76725,2654.5,2654.1,0.0813]
[1739190616665,3.76732,2654.4,2654.1,0.0813]
[1739190617666,3.76716,2654.6,2654.1,0.0813]
[1739190617872,7.534,2654.7,2654.3,2.17331343]
[1739190618236,3.76704,2654.6,2654.3,2.17331343]
[1739190619053,7.31632,2655.2,2654.3,2.17331343]
[1739190619054,3.76669,2654.9,2654.3,2.17331343]
[1739190619268,3.76669,2654.9,2654.6,2.17331343]
[1739190619646,3.76714,2654.6,2654.3,2.17331343]
[1739190620949,3.76749,2654.3,2654.0,2.17331343]
[1739190621146,3.76775,2654.1,2654.0,2.17331343]
[1739190621484,3.76775,2654.1,2653.7,2.17331343]
[1739190621863,7.53564,2654.1,2653.7,2.17331343]
[1739190622061,3.76792,2654.0,2653.7,2.17331343]
[1739190623053,3.76807,2653.9,2653.7,2.17331343]
[1739190623248,3.76792,2654.0,2653.7,2.17331343]
[1739190623454,3.76768,2654.2,2653.7,5.94161343]
[1739190623653,3.76777,2654.1,2653.7,2.17331343]
[1739190623854,0.55,2654.4,2653.5,0.0813]
[1739190624064,3.76828,2653.8,2653.4,2.17331343]
[1739190625894,7.53656,2653.8,2653.4,2.17331343]
[1739190626057,3.76828,2653.8,2653.4,2.17331343]
[1739190626782,3.76799,2654.0,2653.7,2.17331343]
[1739190627778,3.76859,2653.6,2653.4,2.17331343]
[1739190627980,3.76833,2653.7,2653.4,2.17331343]
[1739190629277,3.76822,2653.8,2653.4,2.17331343]
[1739190629483,7.53625,2653.9,2653.4,2.17331343]
[1739190630075,3.7682,2653.8,2653.4,2.17331343]
[1739190630279,3.76836,2653.7,2653.4,2.17331343]
[1739190630509,3.76856,2653.6,2653.1,2.25461343]
[1739190630713,3.76856,2653.6,2653.1,6.02376343]
[1739190631022,0.8106,2653.7,2653.1,2.25461343]
[1739190631510,3.76868,2653.5,2653.1,2.25461343]
[1739190631692,4.579,2653.7,2653.1,6.02371343]
[1739190631893,4.579,2653.7,2653.1,2.25461343]
[1739190632083,2.17331343,2654.9,2653.1,2.25461343]
[1739190632084,4.57876,2653.9,2653.4,2.17331343]
[1739190632414,3.7683,2653.8,2653.4,2.17568743]
[1739190632780,3.76798,2654.0,2653.4,2.17568743]
[1739190633078,0.8106,2654.1,2653.7,2.17331343]
[1739190633277,7.53489,2654.4,2653.8,3.76816]
[1739190633278,4.57803,2654.4,2653.8,3.76816]
[1739190633719,3.76747,2654.3,2653.7,5.94160343]
[1739190634079,3.76747,2654.3,2653.4,0.002374]
[1739190634080,3.76818,2653.8,2653.4,0.002374]
[1739190634279,3.7686,2653.5,2653.4,0.002374]
[1739190635413,7.3186,2653.5,2653.4,0.002374]
[1739190635737,8.1292,2653.5,2653.4,0.002374]
[1739190637515,3.76848,2653.6,2653.4,0.002374]
[1739190637709,0.8106,2654.2,2653.6,3.76843]
[1739190637904,0.8106,2654.2,2653.7,2.17331343]
[1739190638151,3.76783,2654.1,2653.7,2.17331343]
[1739190638512,0.8106,2654.9,2654.1,3.76775]
[1739190638710,3.76698,2654.7,2654.3,2.17331343]
[1739190638927,3.76734,2654.4,2654.1,0.0813]
[1739190639164,3.76734,2654.4,2653.4,0.002374]
[1739190639165,0.55,2654.2,2653.4,0.002374]
[1739190639459,7.53714,2653.6,2653.4,0.002374]
[1739190639654,3.76857,2653.6,2653.4,0.002374]
[1739190640032,7.53716,2653.6,2653.4,0.002374]
[1739190640240,3.7686,2653.5,2653.4,0.002374]
[1739190640621,4.3186,2653.5,2653.4,0.002374]
[1739190640926,8.1217,2653.5,2653.4,4e-06]
[1739190647071,7.5717,2653.5,2653.4,4e-06]
[1739190647436,8.1217,2653.5,2653.4,4e-06]
[1739190648243,13.0676375,2653.5,2653.4,4e-06]
[1739190651939,8.1217,2653.5,2653.4,4e-06]
[1739190652753,7.5717,2653.5,2653.4,4e-06]
[1739190652972,8.1217,2653.5,2653.4,4e-06]
[1739190653972,5.1217,2653.5,2653.4,4e-06]
[1739190654498,8.1217,2653.5,2653.4,4e-06]
[1739190654639,7.3186,2653.5,2653.4,4e-06]
[1739190658178,3.55,2653.5,2653.4,4e-06]
[1739190658483,3.7686,2653.5,2653.4,4e-06]
[1739190658805,3.76857,2653.6,2653.4,4e-06]
[1739190659081,3.7686,2653.5,2653.4,4e-06]
[1739190659876,3.76857,2653.6,2653.4,4e-06]
[1739190660651,3.7686,2653.5,2653.4,4e-06]
[1739190661851,7.3186,2653.5,2653.4,4e-06]
[1739190665575,8.1274,2653.5,2653.4,4e-06]
[1739190666275,3.77045,2652.2,2652.1,0.0863]
[1739190668268,3.77045,2652.2,2652.1,0.005]
[1739190668867,3.77032,2652.3,2652.1,0.005]
[1739190669882,7.54072,2652.3,2652.1,0.005]
[1739190670092,3.77032,2652.3,2652.1,0.005]
[1739190670467,7.54075,2652.3,2652.1,0.005]
[1739190670774,7.54074,2652.3,2652.1,0.005]
[1739190671463,3.77045,2652.2,2652.1,0.005]
[1739190674187,7.54073,2652.3,2652.1,0.005]
[1739190674402,3.77032,2652.3,2652.1,0.005]
[1739190674554,3.76943,2653.0,2652.4,3.77014]
[1739190674759,3.7694,2653.0,2652.5,3.8513]
[1739190674960,3.7694,2653.0,2652.8,2.17331343]
[1739190675172,3.76945,2652.9,2652.8,2.17331343]
[1739190675386,3.76909,2653.2,2652.8,2.17331343]
[1739190675991,0.7974,2653.4,2652.5,2.25461343]
[1739190675992,3.76931,2653.0,2652.5,2.25461343]
[1739190676401,3.76958,2652.9,2652.5,2.25461343]
[1739190676965,3.76931,2653.0,2652.5,2.25461343]
[1739190676966,3.7694,2653.0,2652.5,2.25461343]
[1739190677396,3.76947,2652.9,2652.5,2.25461343]
[1739190678898,3.7694,2653.0,2652.5,2.25461343]
[1739190679099,3.76946,2652.9,2652.5,2.25461343]
[1739190679871,3.0,2653.2,2652.5,2.25461343]
[1739190680070,3.0,2653.2,2652.1,3.77551]
[1739190680071,3.77025,2652.4,2652.2,2.25461343]
[1739190681012,3.77031,2652.3,2652.2,2.17331343]
[1739190681306,3.77045,2652.2,2652.1,0.005]
[1739190682168,6.77045,2652.2,2652.1,0.005]
[1739190686196,7.32045,2652.2,2652.1,0.005]
[1739190687982,3.77116,2651.7,2651.6,2.17331343]
[1739190688608,3.77102,2651.8,2651.6,2.17331343]
[1739190688909,7.54212,2651.8,2651.6,2.17331343]
[1739190689118,3.77102,2651.8,2651.6,2.17331343]
[1739190690012,3.77116,2651.7,2651.6,2.17331343]
[1739190693424,3.77088,2651.9,2651.6,2.17331343]
[1739190694128,3.7711,2651.8,2651.6,2.17331343]
[1739190694724,3.77116,2651.7,2651.6,2.17331343]
[1739190695807,3.77103,2651.8,2651.6,2.17331343]
[1739190696431,7.54213,2651.8,2651.6,2.17331343]
[1739190696627,3.77116,2651.7,2651.6,2.17331343]